fUST/lending_fUST_20251221
["ID","MTS","AMOUNT","RATE_DAILY","PERIOD"]
[399325249,1766303584882,-2811.77297213,9.473e-05,2]
[399325250,1766303584911,-4376.46405574,9.473e-05,2]
[399325251,1766303587098,701.0,9.472e-05,2]
[399325252,1766303638531,614.67,8.247e-05,2]
[399325253,1766303638959,1229.33,8.997e-05,2]
[399325254,1766303713550,8156.01,9.665e-05,2]
[399325255,1766303713584,10000.01,9.665e-05,2]
[399325256,1766303713616,10000.01,9.665e-05,2]
[399325257,1766303713647,10000.01,9.665e-05,2]
[399325258,1766303725861,-281.41561815,8.272e-05,2]
[399325259,1766303728884,-246.7729749,8.272e-05,2]
[399325260,1766303730970,-351.67810201,8.189e-05,2]
[399325261,1766303733113,-185.84952116,8.189e-05,2]
[399325262,1766303736576,-373.21586627,8.189e-05,2]
[399325263,1766303740795,-238.01316205,8.189e-05,2]
[399325264,1766303742710,-371.3576439,8.189e-05,2]
[399325265,1766303744788,-393.38593051,8.189e-05,2]
[399325266,1766303746498,-207.17384502,8.189e-05,2]
[399325267,1766303750813,-298.32210853,8.189e-05,2]
[399325268,1766303752429,-385.76599839,8.189e-05,2]
[399325269,1766303755833,-501.25135427,8.189e-05,2]
[399325270,1766303758154,-1693.98646789,8.189e-05,2]
[399325271,1766303759030,-63.01140695,8.272e-05,2]
[399325272,1766303781625,-5000.0,8.934e-05,2]
[399325273,1766303781762,-1182.39,9.024e-05,2]
[399325274,1766303795320,590.469586,8.825e-05,2]
[399325275,1766303801156,568.62,8.302e-05,2]
[399325276,1766303803013,-443.94883952,9.057e-05,2]
[399325277,1766303809885,-693.30116048,9.057e-05,2]
[399325278,1766303815540,300.0,9.537e-05,2]
[399325279,1766303816336,14591.0,0.000153,120]
[399325280,1766303832756,-261.21684265,9.567e-05,2]
[399325285,1766303835439,-220.44926931,9.567e-05,2]
[399325291,1766303839726,-300.0,9.567e-05,2]
[399325298,1766303842354,-307.26315268,9.567e-05,2]
[399325313,1766303877223,-336.3793406,9.567e-05,2]
[399325314,1766303881801,549.55,8.235e-05,2]
[399325315,1766303882224,1099.09,8.984e-05,2]
[399325316,1766303907289,-300.0,9.567e-05,2]
[399325317,1766303909837,-470.04377759,9.567e-05,2]
[399325318,1766303914313,-236.17280447,9.567e-05,2]
[399325319,1766303917008,-202.61459193,9.567e-05,2]
[399325320,1766303937295,-255.81622234,9.567e-05,2]
[399325321,1766303940134,-197.79623766,9.567e-05,2]
[399325322,1766303943312,-368.13813171,9.567e-05,2]
[399325323,1766303945563,-300.0,9.567e-05,2]
[399325324,1766303961107,528.56,8.161e-05,2]
[399325325,1766303961539,1057.13,8.903e-05,2]
[399325326,1766303967177,-206.8269527,9.567e-05,2]
[399325327,1766303982149,5000.0,9.537e-05,2]
[399325328,1766304005902,79.07767904,9.537e-05,2]
[399325329,1766304005933,4920.92232096,9.537e-05,2]
[399325330,1766304029657,5000.0,9.537e-05,2]
[399325331,1766304046198,79.08767904,8.203e-05,2]
[399325332,1766304046228,429.29232096,8.203e-05,2]
[399325333,1766304046734,1016.76,8.948e-05,2]
[399325334,1766304053594,5000.0,9.537e-05,2]
[399325335,1766304076562,3553.95767904,9.537e-05,2]
[399325336,1766304076591,1446.04232096,9.537e-05,2]
[399325337,1766304099509,5000.0,9.537e-05,2]
[399325338,1766304123223,5000.0,9.537e-05,2]
[399325339,1766304127093,0.01,8.256e-05,2]
[399325340,1766304127125,510.37,8.256e-05,2]
[399325341,1766304127522,1020.76,9.006e-05,2]
[399325343,1766304146346,5000.0,9.537e-05,2]
[399325344,1766304169373,3468.88,9.537e-05,2]
[399325345,1766304169407,1531.12,9.537e-05,2]
[399325346,1766304187173,172.0084308,8.662e-05,2]
[399325347,1766304194743,5000.0,9.537e-05,2]
[399325348,1766304207496,512.08,8.255e-05,2]
[399325349,1766304207828,-257.7272025,9.645e-05,2]
[399325350,1766304207901,1024.16,9.005e-05,2]
[399325351,1766304219578,1760.6415692,9.537e-05,2]
[399325352,1766304267222,-176.18888576,9.537e-05,2]
[399325353,1766304274605,-3063.16954504,9.537e-05,2]
[399325354,1766304287250,3873.67090992,9.537e-05,2]
[399325355,1766304287279,1126.32909008,9.537e-05,2]
[399325356,1766304287375,513.5,8.261e-05,2]
[399325357,1766304287794,1026.99,9.012e-05,2]
[399325358,1766304310766,5000.0,9.537e-05,2]
[399325359,1766304334529,2333.19090992,9.537e-05,2]
[399325360,1766304334570,2666.80909008,9.537e-05,2]
[399325361,1766304350428,3127.81044336,9.537e-05,2]
[399325362,1766304358285,4205.39046656,9.537e-05,2]
[399325363,1766304358316,794.60953344,9.537e-05,2]
[399325364,1766304368539,514.93,8.309e-05,2]
[399325365,1766304368951,1029.85,9.064e-05,2]
[399325366,1766304382461,5000.0,9.537e-05,2]
[399325367,1766304405188,2660.62046656,9.537e-05,2]
[399325368,1766304405217,2339.37953344,9.537e-05,2]
[399325369,1766304417801,-12.41536947,9.645e-05,2]
[399325370,1766304417824,-143.06088257,9.645e-05,2]
[399325371,1766304420404,-219.6030946,9.645e-05,2]
[399325372,1766304421549,1540.39954037,9.537e-05,2]
[399325373,1766304422956,-192.33602283,9.645e-05,2]
[399325374,1766304422980,-41.83340994,9.649e-05,2]
[399325376,1766304425626,-244.16714324,9.649e-05,2]
[399325377,1766304429708,5000.0,9.537e-05,2]
[399325378,1766304449029,539.19,8.291e-05,2]
[399325379,1766304449468,1078.38,9.045e-05,2]
[399325380,1766304452908,5000.0,9.539e-05,2]
[399325381,1766304476048,3382.44,9.539e-05,2]
[399325382,1766304476077,1617.56,9.539e-05,2]
[399325384,1766304500128,5000.0,9.539e-05,2]
[399325385,1766304523422,3382.45,9.539e-05,2]
[399325386,1766304523448,1617.55,9.539e-05,2]
[399325387,1766304528063,518.6,8.269e-05,2]
[399325388,1766304528505,1037.21,9.02e-05,2]
[399325389,1766304546819,5000.0,9.539e-05,2]
[399325390,1766304552186,-244.3298509,9.649e-05,2]
[399325391,1766304552209,-290.20602405,9.657e-05,2]
[399325392,1766304554441,-9.79397595,9.657e-05,2]
[399325393,1766304554463,-300.0,9.657e-05,2]
[399325394,1766304554486,-181.36968972,9.658e-05,2]
[399325395,1766304556890,-200.0,9.658e-05,2]
[399325396,1766304560154,-214.15,9.658e-05,2]
[399325397,1766304570120,1826.65,9.539e-05,2]
[399325398,1766304570148,3173.35,9.539e-05,2]
[399325399,1766304593588,5000.0,9.539e-05,2]
[399325400,1766304608060,498.8,8.283e-05,2]
[399325401,1766304608520,997.6,9.036e-05,2]
[399325402,1766304616734,330.26,9.539e-05,2]
[399325403,1766304616766,4669.74,9.539e-05,2]
[399325418,1766304631884,-334.45923056,9.656e-05,2]
[399325419,1766304632027,-196.54076944,9.656e-05,2]
[399325420,1766304632037,-300.0,9.657e-05,2]
[399325421,1766304632046,-300.0,9.657e-05,2]
[399325422,1766304632056,-212.46886566,9.657e-05,2]
[399325423,1766304632067,-87.53113434,9.657e-05,2]
[399325424,1766304632077,-555.0,9.657e-05,2]
[399325425,1766304632086,-300.0,9.657e-05,2]
[399325426,1766304632095,-532.48031028,9.658e-05,2]
[399325427,1766304632104,-500.0,9.658e-05,2]
[399325428,1766304632113,-500.0,9.658e-05,2]
[399325429,1766304632122,-500.0,9.658e-05,2]
[399325430,1766304632131,-500.0,9.658e-05,2]
[399325431,1766304632140,-500.0,9.658e-05,2]
[399325432,1766304632149,-406.21430695,9.658e-05,2]
[399325433,1766304632159,-500.0,9.658e-05,2]
[399325434,1766304632168,-314.04386022,9.658e-05,2]
[399325435,1766304632177,-500.0,9.658e-05,2]
[399325436,1766304632186,-500.0,9.658e-05,2]
[399325437,1766304632196,-500.0,9.658e-05,2]
[399325438,1766304632205,-500.0,9.658e-05,2]
[399325439,1766304632215,-500.0,9.658e-05,2]
[399325440,1766304632224,-500.0,9.658e-05,2]
[399325441,1766304632233,-500.0,9.658e-05,2]
[399325442,1766304632242,-500.0,9.658e-05,2]
[399325443,1766304632251,-500.0,9.658e-05,2]
[399325444,1766304632260,-500.0,9.658e-05,2]
[399325445,1766304632270,-500.0,9.658e-05,2]
[399325446,1766304632279,-216.55304044,9.658e-05,2]
[399325447,1766304632288,-500.0,9.658e-05,2]
[399325448,1766304632298,-500.0,9.658e-05,2]
[399325449,1766304632307,-500.0,9.658e-05,2]
[399325450,1766304632316,-500.0,9.658e-05,2]
[399325451,1766304632325,-500.0,9.658e-05,2]
[399325452,1766304632334,-500.0,9.658e-05,2]
[399325453,1766304632343,-500.0,9.658e-05,2]
[399325454,1766304632353,-435.15194846,9.658e-05,2]
[399325455,1766304632363,-500.0,9.658e-05,2]
[399325456,1766304632373,-500.0,9.658e-05,2]
[399325457,1766304632382,-500.0,9.658e-05,2]
[399325458,1766304632392,-500.0,9.658e-05,2]
[399325459,1766304632401,-500.0,9.658e-05,2]
[399325460,1766304632410,-500.0,9.658e-05,2]
[399325461,1766304632420,-500.0,9.658e-05,2]
[399325462,1766304632430,-500.0,9.658e-05,2]
[399325463,1766304632439,-500.0,9.658e-05,2]
[399325464,1766304632448,-500.0,9.658e-05,2]
[399325465,1766304632459,-500.0,9.658e-05,2]
[399325466,1766304632468,-500.0,9.658e-05,2]
[399325467,1766304632478,-500.0,9.658e-05,2]
[399325468,1766304632487,-500.0,9.658e-05,2]
[399325469,1766304632496,-500.0,9.658e-05,2]
[399325470,1766304632506,-500.0,9.658e-05,2]
[399325471,1766304632515,-500.0,9.658e-05,2]
[399325472,1766304632524,-500.0,9.658e-05,2]
[399325473,1766304632534,-500.0,9.658e-05,2]
[399325474,1766304632543,-500.0,9.658e-05,2]
[399325475,1766304632552,-418.96005084,9.658e-05,2]
[399325476,1766304632562,-500.0,9.658e-05,2]
[399325477,1766304632571,-500.0,9.658e-05,2]
[399325478,1766304632580,-500.0,9.658e-05,2]
[399325479,1766304632590,-600.54316388,9.658e-05,2]
[399325480,1766304632599,-500.0,9.658e-05,2]
[399325481,1766304632609,-500.0,9.658e-05,2]
[399325482,1766304632618,-500.0,9.658e-05,2]
[399325483,1766304632628,-500.0,9.658e-05,2]
[399325484,1766304632637,-500.0,9.658e-05,2]
[399325485,1766304632647,-500.0,9.658e-05,2]
[399325486,1766304632661,-466.31589507,9.658e-05,2]
[399325487,1766304632670,-500.0,9.658e-05,2]
[399325488,1766304632679,-500.0,9.658e-05,2]
[399325489,1766304632689,-500.0,9.658e-05,2]
[399325490,1766304632698,-500.0,9.658e-05,2]
[399325491,1766304632708,-500.0,9.658e-05,2]
[399325492,1766304632719,-500.0,9.658e-05,2]
[399325493,1766304632728,-500.0,9.658e-05,2]
[399325494,1766304632738,-500.0,9.658e-05,2]
[399325495,1766304632748,-45545.34732859,9.658e-05,2]
[399325526,1766304637956,-4295.00459402,9.658e-05,2]
[399325532,1766304638009,-159.64807739,9.658e-05,2]
[399325534,1766304638019,-500.0,9.659e-05,2]
[399325536,1766304638029,-373.84062636,9.659e-05,2]
[399325538,1766304638038,-163.20314829,9.659e-05,2]
[399325540,1766304638048,-22941.48901372,9.665e-05,2]
[399325542,1766304638059,-3665.11543935,9.665e-05,2]
[399325545,1766304638071,-1024.6242914,9.665e-05,2]
[399325547,1766304638082,-2831.46607915,9.665e-05,2]
[399325549,1766304638093,-227.74821628,9.665e-05,2]
[399325551,1766304638102,-323.19875322,9.706e-05,2]
[399325553,1766304638111,-232.32506392,9.706e-05,2]
[399325554,1766304638121,-201.71701658,9.706e-05,2]
[399325556,1766304638130,-231.0012065,9.706e-05,2]
[399325558,1766304638140,-448.76942768,9.706e-05,2]
[399325560,1766304638149,-415.8021717,9.706e-05,2]
[399325562,1766304638158,-807.78496983,9.706e-05,2]
[399325564,1766304638167,-739.20386079,9.713e-05,2]
[399325566,1766304638176,-362.72753921,9.74e-05,2]
[399325568,1766304638185,-265.51435876,9.744e-05,2]
[399325570,1766304638194,-268.39544556,9.754e-05,2]
[399325572,1766304638203,-639.8397,9.765e-05,2]
[399325574,1766304638212,-1496.41,9.789e-05,2]
[399325575,1766304638221,-452.97425367,9.829e-05,2]
[399325577,1766304638230,-300.0,9.85e-05,2]
[399325579,1766304638240,-300.0,9.85e-05,2]
[399325581,1766304638249,-300.0,9.85e-05,2]
[399325583,1766304638258,-300.0,9.85e-05,2]
[399325585,1766304638268,-300.0,9.85e-05,2]
[399325587,1766304638277,-300.0,9.85e-05,2]
[399325589,1766304638286,-300.0,9.85e-05,2]
[399325591,1766304638296,-300.0,9.85e-05,2]
[399325594,1766304638305,-300.0,9.85e-05,2]
[399325595,1766304638315,-300.0,9.85e-05,2]
[399325597,1766304638324,-300.0,9.85e-05,2]
[399325599,1766304638333,-300.0,9.85e-05,2]
[399325601,1766304638342,-300.0,9.85e-05,2]
[399325603,1766304638352,-300.0,9.85e-05,2]
[399325606,1766304638362,-300.0,9.85e-05,2]
[399325607,1766304638371,-40.32154925,9.85e-05,2]
[399325610,1766304638382,-559.67845075,9.85e-05,2]
[399325612,1766304638391,-178.91,0.0001,2]
[399325614,1766304638401,-1161.54601327,0.0001,10]
[399325616,1766304638413,-968.75395028,0.0001,10]
[399325802,1766304640165,3987.72441316,9.539e-05,2]
[399325803,1766304640192,-3925.70003645,0.0001,10]
[399325804,1766304640201,-152.01119305,0.0001,2]
[399325805,1766304640210,-161.68070704,0.00010056,2]
[399325806,1766304640219,-178.91,0.000102,2]
[399325824,1766304640448,-188.2564414,0.0001031,2]
[399325828,1766304640516,-965.59458505,0.0001031,2]
[399325831,1766304640526,-1436.06216859,0.00010316,2]
[399325833,1766304640535,-310.17335632,0.00010356,2]
[399325874,1766304640924,-3e-08,0.00010356,2]
[399325930,1766304641442,-104.27796303,0.00010356,2]
[399325932,1766304641451,-306.73765207,0.00010399,2]
[399325934,1766304641460,-210.62214902,0.00010426,2]
[399325936,1766304641470,-278.36223588,0.00010444,2]
[399325939,1766304641481,-454.58,0.00010444,2]
[399325941,1766304641492,-82.41142073,0.00010444,2]
[399325943,1766304641501,-1995.21,0.00010542,2]
[399325945,1766304641510,-420.0,0.00010623,2]
[399325947,1766304641519,-4.72918515,0.00010739,2]
[399326336,1766304668447,-162.50247874,0.00011107,7]
[399326337,1766304668477,-1844.29197022,0.00014966,5]
[399326338,1766304687545,435.32,8.297e-05,2]
[399326339,1766304688035,870.64,9.052e-05,2]
[399326340,1766304782038,36.58558684,8.328e-05,2]
[399326341,1766304782118,404.08441316,8.328e-05,2]
[399326342,1766304782465,881.35,9.086e-05,2]
[399326343,1766304862729,423.85,8.405e-05,2]
[399326344,1766304863133,847.7,9.169e-05,2]
[399326345,1766304866102,5000.0,9.538e-05,2]
[399326346,1766304890330,5000.0,9.547e-05,2]
[399326347,1766304914044,5000.0,9.547e-05,2]
[399326348,1766304937157,0.01,9.547e-05,2]
[399326349,1766304937219,4999.99,9.547e-05,2]
[399326350,1766304940005,-300.0,9.557e-05,2]
[399326351,1766304940070,-300.0,9.557e-05,2]
[399326352,1766304940137,-172.0,9.557e-05,2]
[399326353,1766304940206,-887.0,9.557e-05,2]
[399326354,1766304942755,407.67,8.335e-05,2]
[399326355,1766304943163,815.33,9.093e-05,2]
[399326356,1766304960428,5000.0,9.557e-05,2]
[399326357,1766304962338,300.0,9.556e-05,2]
[399326358,1766304984201,159.01,9.557e-05,2]
[399326359,1766304984271,4840.99,9.557e-05,2]
[399326360,1766305007251,5000.0,9.557e-05,2]
[399326361,1766305022738,159.02,9.556e-05,2]
[399326362,1766305022791,140.98,9.556e-05,2]
[399326363,1766305022991,413.8,8.318e-05,2]
[399326364,1766305023426,827.59,9.074e-05,2]
[399326365,1766305030759,2376.5951911,9.557e-05,2]
[399326366,1766305053550,3332.3948089,9.557e-05,2]
[399326367,1766305077183,5000.0,9.557e-05,2]
[399326368,1766305082966,300.0,9.556e-05,2]
[399326369,1766305103217,398.0,8.297e-05,2]
[399326370,1766305104473,796.0,9.052e-05,2]
[399326371,1766305124215,173.6151911,9.557e-05,2]
[399326372,1766305124277,4826.3848089,9.557e-05,2]
[399326373,1766305142767,300.0,9.556e-05,2]
[399326374,1766305147919,4539.53612534,9.557e-05,2]
[399326375,1766305172203,334.08906576,9.557e-05,2]
[399326376,1766305183921,404.94,8.311e-05,2]
[399326377,1766305184359,809.89,9.067e-05,2]
[399326378,1766305230354,216.7837987,8.608e-05,2]
[399326379,1766305263571,389.48,8.332e-05,2]
[399326380,1766305264023,778.96,9.089e-05,2]
[399326381,1766305343576,374.61,8.344e-05,2]
[399326382,1766305344024,749.22,9.103e-05,2]
[399326383,1766305374506,5000.0,9.537e-05,2]
[399326384,1766305423439,374.96,8.361e-05,2]
[399326385,1766305423840,749.92,9.121e-05,2]
[399326386,1766305504096,360.65,8.385e-05,2]
[399326387,1766305504564,721.29,9.147e-05,2]
[399326388,1766305607591,346.88,8.362e-05,2]
[399326389,1766305608042,693.75,9.122e-05,2]
[399326390,1766305643410,3821.7992378,8.604e-05,2]
[399326391,1766305697799,333.63,8.359e-05,2]
[399326392,1766305698263,667.26,9.119e-05,2]
[399326393,1766305736159,3054.7507622,9.457e-05,2]
[399326394,1766305736231,10000.01,9.457e-05,2]
[399326395,1766305736295,1234.93051092,9.457e-05,2]
[399326396,1766305776682,360.44,8.363e-05,2]
[399326397,1766305777125,720.87,9.123e-05,2]
[399326398,1766305780664,731.90455521,9.525e-05,2]
[399326423,1766305838033,-300.0,9.534e-05,2]
[399326424,1766305838044,-300.0,9.534e-05,2]
[399326425,1766305838054,-300.0,9.554e-05,2]
[399326426,1766305838063,-2787.65918,9.555e-05,2]
[399326427,1766305838216,-557.66978425,9.555e-05,2]
[399326992,1766305846234,-711.97267304,9.555e-05,2]
[399326993,1766305862544,440.21,8.387e-05,2]
[399326994,1766305862953,880.43,9.149e-05,2]
[399326995,1766305870764,150.02,9.525e-05,2]
[399326996,1766305887852,6716.13544479,9.456e-05,2]
[399326997,1766305887928,10000.01,9.456e-05,2]
[399326998,1766305888004,10000.01,9.456e-05,2]
[399326999,1766305888076,10000.01,9.456e-05,2]
[399327000,1766305888152,10000.01,9.456e-05,2]
[399327001,1766305892028,-19823.58079035,9.456e-05,2]
[399327002,1766305923727,-5000.0,9.362e-05,2]
[399327003,1766305923895,-545.03460272,9.409e-05,2]
[399327004,1766305933842,3296.56682989,9.416e-05,2]
[399327005,1766305941746,5000.0,9.416e-05,2]
[399327006,1766305944052,571.63,8.436e-05,2]
[399327007,1766305944453,41.74396467,9.203e-05,2]
[399327008,1766305944479,1101.51603533,9.203e-05,2]
[399327009,1766305965375,5000.0,9.416e-05,2]
[399327010,1766305988323,3898.49396467,9.416e-05,2]
[399327011,1766305988349,1101.50603533,9.416e-05,2]
[399327012,1766306011334,5000.0,9.416e-05,2]
[399327013,1766306012069,-300.0,9.455e-05,2]
[399327014,1766306012097,-384.028,9.455e-05,2]
[399327015,1766306016743,2241.60329128,9.358e-05,2]
[399327016,1766306026136,591.15,8.442e-05,2]
[399327017,1766306026607,1182.29,9.21e-05,2]
[399327018,1766306034418,5000.0,9.455e-05,2]
[399327019,1766306042198,300.0,9.454e-05,2]
[399327020,1766306047767,193.58232532,9.148e-05,2]
[399327021,1766306050005,221.23694323,9.398e-05,2]
[399327022,1766306058375,4285.19073145,9.455e-05,2]
[399327023,1766306058397,714.80926855,9.455e-05,2]
[399327024,1766306074928,241.05956925,9.454e-05,2]
[399327025,1766306074968,500.0,9.454e-05,2]
[399327026,1766306075008,500.0,9.454e-05,2]
[399327027,1766306075057,312.67154002,9.454e-05,2]
[399327028,1766306075098,500.0,9.454e-05,2]
[399327029,1766306075134,500.0,9.454e-05,2]
[399327030,1766306075180,500.0,9.454e-05,2]
[399327031,1766306075226,500.0,9.454e-05,2]
[399327032,1766306075269,500.0,9.454e-05,2]
[399327033,1766306075309,500.0,9.454e-05,2]
[399327034,1766306075359,500.0,9.454e-05,2]
[399327035,1766306075403,365.41406973,9.454e-05,2]
[399327036,1766306075437,500.0,9.454e-05,2]
[399327037,1766306075475,500.0,9.454e-05,2]
[399327038,1766306075522,500.0,9.454e-05,2]
[399327039,1766306075563,500.0,9.454e-05,2]
[399327040,1766306075607,500.0,9.454e-05,2]
[399327041,1766306075650,500.0,9.454e-05,2]
[399327042,1766306075692,500.0,9.454e-05,2]
[399327043,1766306075730,366.05555245,9.454e-05,2]
[399327044,1766306075756,133.94444755,9.454e-05,2]
[399327045,1766306075793,488.07218404,9.454e-05,2]
[399327046,1766306075835,500.0,9.454e-05,2]
[399327047,1766306075876,500.0,9.454e-05,2]
[399327048,1766306075921,291.70775167,9.454e-05,2]
[399327049,1766306075984,500.0,9.454e-05,2]
[399327050,1766306076023,500.0,9.454e-05,2]
[399327051,1766306076065,500.0,9.454e-05,2]
[399327052,1766306076112,500.0,9.454e-05,2]
[399327053,1766306078032,-511.96573244,9.455e-05,2]
[399327054,1766306078066,-500.0,9.455e-05,2]
[399327055,1766306078101,-562.24885481,9.455e-05,2]
[399327056,1766306078182,-16851.5708255,9.456e-05,2]
[399327057,1766306081924,5000.0,9.455e-05,2]
[399327058,1766306084980,150.0,4.2e-07,2]
[399327059,1766306085948,150.0,4.2e-07,2]
[399327060,1766306089796,500.0,9.454e-05,2]
[399327061,1766306089850,286.28561674,9.454e-05,2]
[399327062,1766306089873,112.57499948,9.454e-05,2]
[399327063,1766306102589,300.0,9.455e-05,2]
[399327064,1766306105404,5000.0,9.455e-05,2]
[399327065,1766306105773,585.86,8.378e-05,2]
[399327066,1766306106185,1171.71,9.139e-05,2]
[399327067,1766306115931,478.79830378,9.358e-05,2]
[399327068,1766306128314,5000.0,9.456e-05,2]
[399327069,1766306131743,500.0,9.454e-05,2]
[399327070,1766306135676,500.00000001,9.454e-05,2]
[399327071,1766306151897,3521.21169621,9.456e-05,2]
[399327072,1766306151920,1478.78830379,9.456e-05,2]
[399327073,1766306162342,300.0,9.455e-05,2]
[399327074,1766306162505,300.0,9.455e-05,2]
[399327075,1766306174875,5000.0,9.456e-05,2]
[399327076,1766306185043,563.49,8.358e-05,2]
[399327077,1766306185180,1126.97,9.117e-05,2]
[399327078,1766306190924,527.88160207,9.456e-05,2]
[399327079,1766306198689,702.88009414,9.456e-05,2]
[399327080,1766306198713,4297.11990586,9.456e-05,2]
[399327081,1766306200554,500.0,9.455e-05,2]
[399327082,1766306200583,500.0,9.455e-05,2]
[399327083,1766306200628,243.17782981,9.455e-05,2]
[399327084,1766306200655,199.07863907,9.455e-05,2]
[399327085,1766306221806,4260.63362526,9.456e-05,2]
[399327086,1766306221828,739.36637474,9.456e-05,2]
[399327087,1766306222918,300.0,9.455e-05,2]
[399327088,1766306237613,555.42396285,9.456e-05,2]
[399327089,1766306245453,5000.0,9.456e-05,2]
[399327090,1766306248403,-12093.35623357,9.456e-05,2]
[399327091,1766306248426,-5813.28753286,9.456e-05,2]
[399327092,1766306261756,3405.21966241,9.456e-05,2]
[399327093,1766306261778,1039.35637474,9.456e-05,2]
[399327094,1766306263803,586.15,8.346e-05,2]
[399327095,1766306264249,1172.29,9.105e-05,2]
[399327096,1766306269544,5000.0,9.456e-05,2]
[399327097,1766306293023,5000.0,9.479e-05,2]
[399327098,1766306316257,5000.0,9.479e-05,2]
[399327099,1766306339816,0.01,9.479e-05,2]
[399327100,1766306339839,4999.99,9.479e-05,2]
[399327101,1766306343456,594.33,8.285e-05,2]
[399327102,1766306343857,1188.67,9.038e-05,2]
[399327103,1766306343983,-534.13391067,9.489e-05,2]
[399327104,1766306344009,-999.24742259,9.556e-05,2]
[399327105,1766306344035,-200.0,9.562e-05,2]
[399327106,1766306344063,-300.0,9.572e-05,2]
[399327107,1766306344138,-35933.23733348,9.573e-05,2]
[399327108,1766306362754,3217.02,9.479e-05,2]
[399327109,1766306362776,1782.98,9.479e-05,2]
[399327110,1766306385597,5000.0,9.479e-05,2]
[399327111,1766306391144,150.0,4.2e-07,2]
[399327112,1766306392262,150.0,4.2e-07,2]
[399327113,1766306393218,150.0,4.2e-07,2]
[399327114,1766306408601,2767.03,9.479e-05,2]
[399327115,1766306408626,2232.97,9.479e-05,2]
[399327116,1766306423134,595.83,8.277e-05,2]
[399327117,1766306423532,1191.66,9.03e-05,2]
[399327118,1766306432112,5000.0,9.479e-05,2]
[399327119,1766306455410,979.55,9.479e-05,2]
[399327120,1766306455435,4020.45,9.479e-05,2]
[399327121,1766306471113,4555.69377612,9.479e-05,2]
[399327122,1766306479579,1423.86622388,9.479e-05,2]
[399327123,1766306479601,3576.13377612,9.479e-05,2]
[399327124,1766306503050,5000.0,9.479e-05,2]
[399327125,1766306503546,733.81,8.343e-05,2]
[399327126,1766306503951,690.06622388,9.102e-05,2]
[399327127,1766306503973,777.54377612,9.102e-05,2]
[399327128,1766306505067,-6157.81760246,9.573e-05,2]
[399327129,1766306505091,-554.0,9.573e-05,2]
[399327130,1766306505116,-300.0,9.671e-05,2]
[399327131,1766306505140,-358.37601271,9.672e-05,2]
[399327132,1766306505165,-500.0,9.672e-05,2]
[399327133,1766306505191,-243.57419836,9.672e-05,2]
[399327134,1766306505288,-33772.46437294,9.673e-05,2]
[399327135,1766306584884,806.8,8.287e-05,2]
[399327136,1766306585293,1613.6,9.04e-05,2]
[399327137,1766306619583,1449.51761175,9.189e-05,2]
[399327138,1766306622173,2264.87126835,9.189e-05,2]
[399327139,1766306624398,3087.67734378,9.189e-05,2]
[399327140,1766306624422,170.47586802,9.189e-05,2]
[399327141,1766306663082,-5000.0,9.576e-05,2]
[399327142,1766306663114,-523.45123246,9.624e-05,2]
[399327143,1766306663144,-300.0,9.671e-05,2]
[399327144,1766306663170,-379.11986824,9.672e-05,2]
[399327145,1766306663198,-673.99087688,9.672e-05,2]
[399327146,1766306663224,-1052.05763437,9.672e-05,2]
[399327147,1766306663252,-291.02527268,9.672e-05,2]
[399327148,1766306663279,-517.37826254,9.672e-05,2]
[399327149,1766306663313,-345.33704107,9.672e-05,2]
[399327150,1766306663496,-17835.27962352,9.673e-05,2]
[399327151,1766306663549,776.0,8.347e-05,2]
[399327152,1766306664029,1551.99,9.106e-05,2]
[399327153,1766306722398,310.045421,9.189e-05,2]
[399327154,1766306724787,354.337624,9.189e-05,2]
[399327155,1766306727373,553.09888496,9.189e-05,2]
[399327156,1766306742843,-5000.0,9.575e-05,2]
[399327157,1766306743095,0.01,8.318e-05,2]
[399327158,1766306743120,1181.8,8.318e-05,2]
[399327159,1766306743496,2363.61,9.074e-05,2]